fUST/lending_fUST_20251231
["ID","MTS","AMOUNT","RATE_DAILY","PERIOD"]
[400159367,1767160256302,-1000.0,0.00029735,7]
[400159368,1767160256311,-160.73,0.000298,7]
[400159369,1767160256321,-151.76,0.000298,2]
[400159370,1767160256331,-2390.61,0.00029813,30]
[400159371,1767160256341,-1000.0,0.00029862,7]
[400159372,1767160256351,-500.0,0.00029863,60]
[400159373,1767160256360,-869.84277095,0.00029867,2]
[400159374,1767160256370,-151.76,0.000299,2]
[400159375,1767160256379,-864.0,0.00029948,3]
[400159376,1767160256389,-500.0,0.0003,60]
[400159377,1767160256399,-301.01965178,0.0003,2]
[400159378,1767160256409,-220.0,0.0003,120]
[400159379,1767160256419,-10188.87347094,0.0003,7]
[400159380,1767160256430,-1041.66666667,0.0003,10]
[400159381,1767160256439,-151.0,0.0003,7]
[400159382,1767160256449,-151.0,0.0003,7]
[400159383,1767160256459,-263.107289,0.0003,7]
[400159384,1767160256468,-263.107289,0.0003,7]
[400159385,1767160256479,-275.219476,0.0003,7]
[400159386,1767160256490,-263.107289,0.0003,7]
[400159387,1767160256500,-275.219476,0.0003,7]
[400159388,1767160256510,-263.107289,0.0003,7]
[400159389,1767160256520,-151.0,0.0003,7]
[400159390,1767160256530,-275.219476,0.0003,7]
[400159391,1767160256540,-156.683395,0.0003,7]
[400159392,1767160256550,-275.219476,0.0003,7]
[400159393,1767160256559,-307.660295,0.0003,7]
[400159394,1767160256569,-307.660295,0.0003,7]
[400159395,1767160256579,-307.660295,0.0003,7]
[400159396,1767160256588,-307.660295,0.0003,7]
[400159397,1767160256598,-1046.649437,0.0003,7]
[400159398,1767160256607,-1046.649437,0.0003,7]
[400159399,1767160256617,-1046.649437,0.0003,7]
[400159400,1767160256628,-1046.649437,0.0003,7]
[400159401,1767160256638,-1328.264432,0.0003,7]
[400159402,1767160256647,-1328.264432,0.0003,7]
[400159403,1767160256656,-414.72566,0.0003,7]
[400159404,1767160256666,-1328.264432,0.0003,7]
[400159405,1767160256676,-414.72566,0.0003,7]
[400159406,1767160256686,-1328.264432,0.0003,7]
[400159407,1767160256695,-414.72566,0.0003,7]
[400159408,1767160256705,-414.72566,0.0003,7]
[400159409,1767160256716,-1500.0,0.0003,2]
[400159410,1767160256725,-20727.0,0.00030022,30]
[400159411,1767160256735,-898.577244,0.0003003,7]
[400159412,1767160256745,-898.577244,0.0003003,7]
[400159413,1767160256754,-898.577244,0.0003003,7]
[400159414,1767160256764,-156.003217,0.0003003,7]
[400159415,1767160256773,-898.577244,0.0003003,7]
[400159416,1767160256783,-151.0,0.0003003,7]
[400159417,1767160256793,-180.038769,0.0003003,7]
[400159418,1767160256803,-151.0,0.0003003,7]
[400159419,1767160256812,-151.0,0.0003003,7]
[400159420,1767160256822,-151.0,0.0003003,7]
[400159421,1767160256831,-156.190121,0.0003003,7]
[400159422,1767160256841,-156.190121,0.0003003,7]
[400159423,1767160256851,-156.190121,0.0003003,7]
[400159424,1767160256861,-156.190121,0.0003003,7]
[400159425,1767160256871,-151.0,0.0003003,7]
[400159426,1767160256881,-193.357014,0.0003003,7]
[400159427,1767160256891,-151.0,0.0003003,7]
[400159428,1767160256901,-193.357014,0.0003003,7]
[400159429,1767160256911,-193.357014,0.0003003,7]
[400159430,1767160256922,-193.357014,0.0003003,7]
[400159431,1767160256932,-151.0,0.0003003,7]
[400159432,1767160256941,-736.0,0.00030037,3]
[400159433,1767160256951,-500.0,0.00030077,5]
[400159434,1767160256960,-242.012831,0.000301,7]
[400159435,1767160256970,-151.0,0.000301,7]
[400159436,1767160256980,-151.0,0.000301,7]
[400159437,1767160256993,-151.0,0.000301,7]
[400159438,1767160257003,-151.0,0.000301,7]
[400159439,1767160257019,-151.0,0.000301,7]
[400159440,1767160257030,-151.0,0.000301,7]
[400159441,1767160257039,-151.0,0.000301,7]
[400159442,1767160257049,-643.406088,0.000301,7]
[400159443,1767160257059,-643.406088,0.000301,7]
[400159444,1767160257069,-151.0,0.000301,7]
[400159445,1767160257079,-151.76,0.000301,2]
[400159446,1767160257089,-643.406088,0.000301,7]
[400159447,1767160257099,-151.0,0.000301,7]
[400159448,1767160257108,-643.406088,0.000301,7]
[400159449,1767160257119,-491.17925611,0.00030137,60]
[400159450,1767160257129,-186.0,0.00030139,4]
[400159451,1767160257139,-6831.4225511,0.00030162,2]
[400159452,1767160257148,-151.76,0.000302,2]
[400159453,1767160257158,-151.0,0.00030205,31]
[400159454,1767160257167,-151.0,0.00030205,31]
[400159455,1767160257177,-151.0,0.00030205,31]
[400159456,1767160257187,-169.0,0.00030205,14]
[400159457,1767160257196,-151.76,0.000303,2]
[400159458,1767160257206,-236.53722422,0.00030307,23]
[400159459,1767160257216,-1023.54419357,0.00030473,2]
[400159460,1767160257226,-190.89,0.000305,2]
[400159461,1767160257235,-151.76,0.000305,2]
[400159462,1767160257245,-1000.0,0.00030531,7]
[400159463,1767160257255,-151.76,0.000306,2]
[400159464,1767160257265,-184.1677213,0.00030685,30]
[400159465,1767160257275,-184.1677213,0.00030685,30]
[400159466,1767160257285,-1380.56,0.000307,14]
[400159467,1767160257295,-16539.98,0.000308,2]
[400159468,1767160257308,-151.0,0.000308,31]
[400159469,1767160257317,-151.0,0.000308,31]
[400159470,1767160257327,-151.0,0.000308,31]
[400159471,1767160257337,-151.0,0.000308,31]
[400159472,1767160257346,-151.0,0.000308,31]
[400159473,1767160257356,-249.08345827,0.000308,31]
[400159474,1767160257366,-151.76,0.000308,2]
[400159475,1767160257376,-500.0,0.00030806,7]
[400159476,1767160257387,-1000.0,0.00030847,7]
[400159477,1767160257397,-151.76,0.000309,2]
[400159478,1767160257407,-2732.13,0.00030917,30]
[400159479,1767160257417,-1000.0,0.00030921,7]
[400159480,1767160257428,-726.0,0.00030927,3]
[400159481,1767160257438,-956.2,0.00030958,30]
[400159482,1767160257447,-183.17211995,0.00031,120]
[400159483,1767160257457,-183.82771828,0.00031,120]
[400159484,1767160257467,-160.7800442,0.00031,120]
[400159485,1767160257477,-177.04295319,0.00031,120]
[400159486,1767160257486,-182.37879673,0.00031,120]
[400159487,1767160257495,-198.32485528,0.00031,120]
[400159488,1767160257506,-185.09337354,0.00031,120]
[400159489,1767160257515,-309.65070131,0.00031,120]
[400159490,1767160257526,-295.83596267,0.00031,120]
[400159491,1767160257535,-189.8315672,0.00031,120]
[400159492,1767160257545,-183.49170094,0.00031,120]
[400159493,1767160257555,-162.37843672,0.00031,120]
[400159494,1767160257565,-1125.59637478,0.00031,120]
[400159495,1767160257575,-151.0,0.000311,31]
[400159496,1767160257585,-151.0,0.000311,31]
[400159497,1767160257595,-151.0,0.000311,31]
[400159498,1767160257605,-151.0,0.000311,31]
[400159499,1767160257614,-151.0,0.000311,31]
[400159500,1767160257624,-151.0,0.000311,31]
[400159501,1767160257634,-151.0,0.000311,31]
[400159502,1767160257643,-151.0,0.000311,31]
[400159503,1767160257653,-184.1347424,0.00031101,30]
[400159504,1767160257663,-184.1347424,0.00031101,30]
[400159505,1767160257673,-184.1347424,0.00031101,30]
[400159506,1767160257683,-184.1347424,0.00031101,30]
[400159507,1767160257693,-184.1347424,0.00031101,30]
[400159508,1767160257703,-160.73,0.000312,7]
[400159509,1767160257713,-1482.3277359,0.00031384,2]
[400159510,1767160257723,-236.53722422,0.00031399,25]
[400159511,1767160257733,-726.0,0.000314,3]
[400159512,1767160257743,-5000.0,0.00031406,2]
[400159513,1767160257752,-2000.0,0.00031429,7]
[400159514,1767160257762,-956.2,0.00031506,31]
[400159515,1767160257772,-1000.0,0.00031528,30]
[400159516,1767160257781,-1000.0,0.00031528,30]
[400159517,1767160257796,-1000.0,0.00031528,30]
[400159518,1767160257806,-715.0,0.00031528,30]
[400159519,1767160257815,-726.0,0.00031567,3]
[400159520,1767160257827,-1000.0,0.00031572,7]
[400159521,1767160257837,-151.0,0.0003158,31]
[400159522,1767160257846,-151.0,0.0003158,31]
[400159523,1767160257856,-500.0,0.00031581,5]
[400159524,1767160257867,-1000.0,0.00031631,7]
[400159525,1767160257876,-150.0,0.00031636,2]
[400159526,1767160257886,-162.4,0.000317,7]
[400159527,1767160257896,-186.0,0.00031854,4]
[400159528,1767160257905,-929.60296132,0.00031867,2]
[400159529,1767160257915,-183.17211995,0.000319,120]
[400159530,1767160257925,-183.82771828,0.000319,120]
[400159531,1767160257934,-160.7800442,0.000319,120]
[400159532,1767160257944,-177.04295319,0.000319,120]
[400159533,1767160257954,-182.37879673,0.000319,120]
[400159534,1767160257963,-198.32485528,0.000319,120]
[400159535,1767160257972,-185.09337354,0.000319,120]
[400159536,1767160257982,-295.83596267,0.000319,120]
[400159537,1767160257991,-190.89,0.000319,2]
[400159538,1767160258001,-183.49170094,0.000319,120]
[400159539,1767160258011,-162.37843672,0.000319,120]
[400159540,1767160258021,-1125.59637478,0.000319,120]
[400159541,1767160258031,-1000.0,0.00031931,7]
[400159542,1767160258041,-1000.0,0.00031952,7]
[400159543,1767160258051,-200.0,0.00032,120]
[400159544,1767160258061,-1918.46508754,0.00032013,7]
[400159545,1767160258071,-3073.65,0.00032022,30]
[400159546,1767160258080,-726.0,0.00032039,3]
[400159547,1767160258090,-726.0,0.0003204,3]
[400159548,1767160258099,-956.2,0.00032054,32]
[400159549,1767160258109,-627.0,0.00032093,2]
[400159550,1767160258118,-1364.0,0.00032093,2]
[400159551,1767160258128,-2156.0,0.00032093,2]
[400159552,1767160258139,-1380.56,0.000323,14]
[400159553,1767160258245,-160.0,0.00032309,11]
[400159554,1767160258255,-236.53722422,0.00032491,26]
[400159555,1767160258265,-1024.56773776,0.00032535,2]
[400159556,1767160258275,-956.2,0.00032602,33]
[400159557,1767160258285,-5000.0,0.00032638,10]
[400159558,1767160258294,-751.5997287,0.00032641,30]
[400159559,1767160258304,-726.0,0.00032679,11]
[400159560,1767160258313,-303.3898112,0.00032697,30]
[400159561,1767160258323,-200.0,0.00032876,120]
[400159562,1767160258332,-365.46780663,0.00032876,2]
[400159563,1767160258342,-263.73224266,0.00032876,2]
[400159564,1767160258351,-500.0,0.00032876,2]
[400159565,1767160258361,-500.0,0.00032876,2]
[400159566,1767160258371,-500.0,0.00032876,2]
[400159567,1767160258380,-531.00720386,0.00032876,2]
[400159568,1767160258389,-531.00720386,0.00032876,2]
[400159569,1767160258399,-531.00720386,0.00032876,2]
[400159570,1767160258409,-531.00720386,0.00032876,2]
[400159571,1767160258419,-531.00720386,0.00032876,2]
[400159572,1767160258428,-531.00720386,0.00032876,2]
[400159573,1767160258438,-531.00720386,0.00032876,2]
[400159574,1767160258448,-531.00720386,0.00032876,2]
[400159575,1767160258458,-531.00720386,0.00032876,2]
[400159576,1767160258467,-531.00720386,0.00032876,2]
[400159577,1767160258477,-531.00720386,0.00032876,2]
[400159578,1767160258486,-531.00720386,0.00032876,2]
[400159579,1767160258495,-531.00720386,0.00032876,2]
[400159580,1767160258505,-531.00720386,0.00032876,2]
[400159581,1767160258515,-531.00720386,0.00032876,2]
[400159582,1767160258524,-531.00720386,0.00032876,2]
[400159583,1767160258534,-531.00720386,0.00032876,2]
[400159584,1767160258550,-531.00720386,0.00032876,2]
[400159585,1767160258561,-531.00720386,0.00032876,2]
[400159586,1767160258579,-531.00720386,0.00032876,2]
[400159587,1767160258589,-531.00720386,0.00032876,2]
[400159588,1767160258599,-531.00720386,0.00032876,2]
[400159589,1767160258610,-531.00720386,0.00032876,2]
[400159590,1767160258619,-531.00720386,0.00032876,2]
[400159591,1767160258629,-531.00720386,0.00032876,2]
[400159592,1767160258639,-531.00720386,0.00032876,2]
[400159593,1767160258648,-531.00720386,0.00032876,2]
[400159594,1767160258657,-531.00720386,0.00032876,2]
[400159595,1767160258666,-531.00720386,0.00032876,2]
[400159596,1767160258676,-531.00720386,0.00032876,2]
[400159597,1767160258685,-531.00720386,0.00032876,2]
[400159598,1767160258696,-531.00720386,0.00032876,2]
[400159599,1767160258707,-531.00720386,0.00032876,2]
[400159600,1767160258716,-531.00720386,0.00032876,2]
[400159601,1767160258726,-531.00720386,0.00032876,2]
[400159602,1767160258735,-531.00720386,0.00032876,2]
[400159603,1767160258744,-531.00720386,0.00032876,2]
[400159604,1767160258753,-531.00720386,0.00032876,2]
[400159605,1767160258763,-531.00720386,0.00032876,2]
[400159606,1767160258772,-531.00720386,0.00032876,2]
[400159607,1767160258781,-531.00720386,0.00032876,2]
[400159608,1767160258790,-531.00720386,0.00032876,2]
[400159609,1767160258800,-531.00720386,0.00032876,2]
[400159610,1767160258810,-531.00720386,0.00032876,2]
[400159611,1767160258819,-531.00720386,0.00032876,2]
[400159612,1767160258828,-531.00720386,0.00032876,2]
[400159613,1767160258837,-531.00720386,0.00032876,2]
[400159614,1767160258847,-516.77672992,0.00032877,8]
[400159615,1767160258856,-568.82,0.00032877,10]
[400159616,1767160258866,-500.0,0.00032877,5]
[400159617,1767160258875,-176.83888462,0.00032881,120]
[400159618,1767160258885,-183.17211995,0.000329,120]
[400159619,1767160258894,-183.82771828,0.000329,120]
[400159620,1767160258904,-160.7800442,0.000329,120]
[400159621,1767160258913,-177.04295319,0.000329,120]
[400159622,1767160258922,-182.37879673,0.000329,120]
[400159623,1767160258931,-198.32485528,0.000329,120]
[400159624,1767160258941,-185.09337354,0.000329,120]
[400159625,1767160258951,-295.83596267,0.000329,120]
[400159626,1767160258960,-183.49170094,0.000329,120]
[400159627,1767160258970,-162.37843672,0.000329,120]
[400159628,1767160258979,-1125.59637478,0.000329,120]
[400159629,1767160258988,-146015.28311026,0.00033,20]
[400159630,1767160258998,-12198.90047027,0.00033,120]
[400159631,1767160259007,-151.0,0.00033,31]
[400159632,1767160259016,-151.0,0.00033,31]
[400159633,1767160259025,-151.0,0.00033,31]
[400159634,1767160259035,-151.0,0.00033,31]
[400159635,1767160259045,-151.0,0.00033,31]
[400159636,1767160259054,-151.0,0.00033,31]
[400159637,1767160259064,-151.0,0.00033,31]
[400159638,1767160259074,-151.0,0.00033,31]
[400159639,1767160259083,-151.0,0.00033,31]
[400159640,1767160259092,-158.022812,0.00033,31]
[400159641,1767160259101,-151.0,0.00033,31]
[400159642,1767160259110,-151.0,0.00033,31]
[400159643,1767160259119,-151.0,0.00033,31]
[400159644,1767160259129,-3415.16,0.00033126,30]
[400159645,1767160259139,-956.2,0.0003315,34]
[400159646,1767160259148,-500.0,0.0003316,5]
[400159647,1767160259157,-887.856808,0.00033165,2]
[400159648,1767160259166,-179.95097548,0.000332,117]
[400159649,1767160259176,-179.95097547,0.000332,117]
[400159650,1767160259186,-2863.2521,0.0003322,30]
[400159651,1767160259195,-726.0,0.0003337,11]
[400159652,1767160259205,-1004.98248976,0.00033425,5]
[400159653,1767160259215,-376.3998898,0.00033438,30]
[400159654,1767160259225,-376.3998898,0.00033438,30]
[400159655,1767160259234,-376.3998898,0.00033438,30]
[400159656,1767160259245,-376.3998898,0.00033438,30]
[400159657,1767160259254,-750.1055895,0.00033438,30]
[400159658,1767160259264,-186.0,0.0003357,5]
[400159659,1767160259273,-472.97444844,0.00033583,28]
[400159660,1767160259283,-190.89,0.000336,2]
[400159661,1767160259293,-956.2,0.00033698,35]
[400159662,1767160259303,-200.0,0.000337,120]
[400159663,1767160259313,-269440.47383675,0.000338,2]
[400159664,1767160259323,-151.0,0.000338,31]
[400159665,1767160259333,-151.0,0.000338,31]
[400159666,1767160259343,-151.0,0.000338,31]
[400159667,1767160259353,-295.093194,0.000338,31]
[400159668,1767160259363,-151.0,0.000338,31]
[400159669,1767160259373,-1336.113026,0.000338,31]
[400159670,1767160259382,-229.240196,0.000338,31]
[400159671,1767160259392,-1336.113026,0.000338,31]
[400159672,1767160259411,-1336.113026,0.000338,31]
[400159673,1767160259430,-1336.113026,0.000338,31]
[400159674,1767160259440,-171.736498,0.000338,31]
[400159675,1767160259450,-171.736498,0.000338,31]
[400159676,1767160259459,-171.736498,0.000338,31]
[400159677,1767160259469,-171.736498,0.000338,31]
[400159678,1767160259479,-947.358642,0.000338,31]
[400159679,1767160259488,-947.358642,0.000338,31]
[400159680,1767160259497,-947.358642,0.000338,31]
[400159681,1767160259507,-947.358642,0.000338,31]
[400159682,1767160259517,-151.0,0.000338,31]
[400159683,1767160259526,-194.97163,0.000338,31]
[400159684,1767160259537,-151.0,0.000338,31]
[400159685,1767160259547,-210.696924,0.000338,31]
[400159686,1767160259556,-210.696924,0.000338,31]
[400159687,1767160259566,-210.696924,0.000338,31]
[400159688,1767160259575,-210.696924,0.000338,31]
[400159689,1767160259584,-151.0,0.000338,31]
[400159690,1767160259594,-151.0,0.000338,31]
[400159691,1767160259603,-155.898305,0.000338,31]
[400159692,1767160259612,-151.000016,0.000338,31]
[400159693,1767160259623,-194.747586,0.000338,31]
[400159694,1767160259633,-194.747586,0.000338,31]
[400159695,1767160259643,-220.61404,0.000338,31]
[400159696,1767160259652,-151.0,0.000338,31]
[400159697,1767160259663,-194.747586,0.000338,31]
[400159698,1767160259672,-194.747586,0.000338,31]
[400159699,1767160259681,-307.545551,0.000338,31]
[400159700,1767160259691,-435.404982,0.000338,31]
[400159701,1767160259701,-262.904127,0.000338,31]
[400159702,1767160259710,-307.545551,0.000338,31]
[400159703,1767160259720,-435.404982,0.000338,31]
[400159704,1767160259730,-307.545551,0.000338,31]
[400159705,1767160259739,-262.904127,0.000338,31]
[400159706,1767160259749,-435.404982,0.000338,31]
[400159707,1767160259759,-307.545551,0.000338,31]
[400159708,1767160259768,-262.904127,0.000338,31]
[400159709,1767160259784,-435.404982,0.000338,31]
[400159710,1767160259807,-262.904127,0.000338,31]
[400159711,1767160259824,-151.0,0.000338,31]
[400159712,1767160259835,-151.0,0.000338,31]
[400159713,1767160259846,-151.0,0.000338,31]
[400159714,1767160259855,-151.0,0.000338,31]
[400159715,1767160259865,-397.901757,0.000338,31]
[400159716,1767160259874,-237.688394,0.000338,31]
[400159717,1767160259884,-397.901757,0.000338,31]
[400159718,1767160259895,-237.688394,0.000338,31]
[400159719,1767160259905,-397.901757,0.000338,31]
[400159720,1767160259914,-237.688394,0.000338,31]
[400159721,1767160259924,-397.901757,0.000338,31]
[400159722,1767160259934,-237.688394,0.000338,31]
[400159723,1767160259944,-805.861522,0.000338,31]
[400159724,1767160259953,-151.0,0.000338,31]
[400159725,1767160259963,-805.861522,0.000338,31]
[400159726,1767160259973,-151.0,0.000338,31]
[400159727,1767160259983,-180.131184,0.000338,31]
[400159728,1767160259992,-805.861522,0.000338,31]
[400159729,1767160260002,-805.861522,0.000338,31]
[400159730,1767160260012,-2077.549415,0.000338,31]
[400159731,1767160260022,-184.533996,0.000338,31]
[400159732,1767160260032,-2077.549415,0.000338,31]
[400159733,1767160260043,-2077.549415,0.000338,31]
[400159734,1767160260053,-2077.549415,0.000338,31]
[400159735,1767160260063,-151.0,0.000338,31]
[400159736,1767160260073,-151.0,0.000338,31]
[400159737,1767160260082,-151.0,0.000338,31]
[400159738,1767160260092,-151.0,0.000338,31]
[400159739,1767160260102,-1549.100689,0.000338,31]
[400159740,1767160260111,-1549.100689,0.000338,31]
[400159741,1767160260120,-1549.100689,0.000338,31]
[400159742,1767160260130,-1549.100689,0.000338,31]
[400159743,1767160260141,-151.0,0.000338,31]
[400159744,1767160260151,-151.0,0.000338,31]
[400159745,1767160260160,-151.0,0.000338,31]
[400159746,1767160260170,-196.352498,0.000338,31]
[400159747,1767160260180,-989.3631517,0.00033867,120]
[400159748,1767160260189,-242.012831,0.00033883,31]
[400159749,1767160260199,-151.0,0.00033883,31]
[400159750,1767160260208,-151.0,0.00033883,31]
[400159751,1767160260219,-151.0,0.00033883,31]
[400159752,1767160260228,-151.0,0.00033883,31]
[400159753,1767160260238,-160.7800442,0.000339,120]
[400159754,1767160260247,-177.04295319,0.000339,120]
[400159755,1767160260257,-182.37879673,0.000339,120]
[400159756,1767160260266,-198.32485528,0.000339,120]
[400159757,1767160260275,-185.09337354,0.000339,120]
[400159758,1767160260285,-295.83596267,0.000339,120]
[400159759,1767160260295,-183.49170094,0.000339,120]
[400159760,1767160260305,-162.37843672,0.000339,120]
[400159761,1767160260314,-1125.59637478,0.000339,120]
[400159762,1767160260324,-200.0,0.00034,120]
[400159763,1767160260334,-150.0,0.00034,120]
[400159764,1767160260343,-160.73,0.00034,7]
[400159765,1767160260352,-295.663,0.000342,30]
[400159766,1767160260362,-295.66,0.000342,30]
[400159767,1767160260372,-956.2,0.00034246,36]
[400159768,1767160260382,-2000.0,0.00034286,7]
[400159769,1767160260391,-150.0,0.00034636,2]
[400159770,1767160260401,-1000.0,0.00034681,30]
[400159771,1767160260410,-1000.0,0.00034681,30]
[400159772,1767160260420,-1000.0,0.00034681,30]
[400159773,1767160260430,-169.32246815,0.0003474,30]
[400159774,1767160260440,-168.06,0.00034788,60]
[400159775,1767160260450,-956.2,0.00034794,37]
[400159776,1767160260460,-371.37255504,0.00034818,5]
[400159777,1767160260469,-265.6479112,0.00034877,30]
[400159778,1767160260479,-168.06,0.00034888,60]
[400159779,1767160260488,-160.7800442,0.000349,120]
[400159780,1767160260497,-182.37879673,0.000349,120]
[400159781,1767160260507,-295.83596267,0.000349,120]
[400159782,1767160260516,-1125.59637478,0.000349,120]
[400159783,1767160260525,-168.06,0.00034988,60]
[400159784,1767160260535,-804.56030053,0.00035,30]
[400159785,1767160260638,-150.0,0.00035,120]
[400159786,1767160260648,-190.89,0.00035,2]
[400159787,1767160260657,-16539.98,0.00035,14]
[400159788,1767160260667,-150.82,0.00035004,60]
[400159789,1767160260676,-151.0,0.00035051,31]
[400159790,1767160260685,-151.0,0.00035051,31]
[400159791,1767160260694,-263.107289,0.00035051,31]
[400159792,1767160260704,-263.107289,0.00035051,31]
[400159793,1767160260715,-275.219476,0.00035051,31]
[400159794,1767160260725,-263.107289,0.00035051,31]
[400159795,1767160260734,-275.219476,0.00035051,31]
[400159796,1767160260743,-263.107289,0.00035051,31]
[400159797,1767160260753,-151.0,0.00035051,31]
[400159798,1767160260762,-275.219476,0.00035051,31]
[400159799,1767160260771,-275.219476,0.00035051,31]
[400159800,1767160260781,-307.660295,0.00035051,31]
[400159801,1767160260791,-307.660295,0.00035051,31]
[400159802,1767160260801,-307.660295,0.00035051,31]
[400159803,1767160260810,-307.660295,0.00035051,31]
[400159804,1767160260819,-1046.649437,0.00035051,31]
[400159805,1767160260829,-1046.649437,0.00035051,31]
[400159806,1767160260838,-1046.649437,0.00035051,31]
[400159807,1767160260847,-1046.649437,0.00035051,31]
[400159808,1767160260857,-1328.264432,0.00035051,31]
[400159809,1767160260866,-1328.264432,0.00035051,31]
[400159810,1767160260876,-414.72566,0.00035051,31]
[400159811,1767160260885,-1328.264432,0.00035051,31]
[400159812,1767160260894,-414.72566,0.00035051,31]
[400159813,1767160260904,-1328.264432,0.00035051,31]
[400159814,1767160260913,-414.72566,0.00035051,31]
[400159815,1767160260922,-414.72566,0.00035051,31]
[400159816,1767160260931,-151.0,0.00035051,31]
[400159817,1767160260940,-151.0,0.00035051,31]
[400159818,1767160260950,-151.0,0.00035051,31]
[400159819,1767160260959,-643.406088,0.00035051,31]
[400159820,1767160260969,-643.406088,0.00035051,31]
[400159821,1767160260979,-151.0,0.00035051,31]
[400159822,1767160260989,-643.406088,0.00035051,31]
[400159823,1767160260998,-151.0,0.00035051,31]
[400159824,1767160261008,-643.406088,0.00035051,31]
[400159825,1767160261017,-168.06,0.00035088,60]
[400159826,1767160261027,-627.0,0.00035093,2]
[400159827,1767160261036,-1364.0,0.00035093,2]
[400159828,1767160261046,-2156.0,0.00035093,2]
[400159829,1767160261055,-150.82,0.00035104,60]
[400159830,1767160261067,-169.32246815,0.00035123,30]
[400159831,1767160261076,-168.06,0.00035188,60]
[400159832,1767160261085,-1108.7,0.000352,120]
[400159833,1767160261094,-150.82,0.00035204,60]
[400159834,1767160261104,-153.0,0.00035225,30]
[400159835,1767160261113,-153.0,0.00035225,30]
[400159836,1767160261123,-153.0,0.00035225,30]
[400159837,1767160261132,-153.0,0.00035225,30]
[400159838,1767160261141,-186.0,0.00035285,6]
[400159839,1767160261151,-168.0656962,0.00035288,60]
[400159840,1767160261160,-150.82,0.00035304,60]
[400159841,1767160261170,-956.2,0.00035342,38]
[400159842,1767160261179,-150.82,0.00035404,60]
[400159843,1767160261188,-376.3998898,0.00035426,30]
[400159844,1767160261198,-376.3998898,0.00035426,30]
[400159845,1767160261207,-376.3998898,0.00035426,30]
[400159846,1767160261216,-169.32246815,0.00035479,30]
[400159847,1767160261226,-200.0,0.000356,120]
[400159848,1767160261235,-151.0,0.00035616,31]
[400159849,1767160261245,-154.738358,0.00035616,31]
[400159850,1767160261254,-600.0,0.00035648,2]
[400159851,1767160261264,-5000.0,0.00035739,3]
[400159852,1767160261274,-185.81582746,0.00035759,15]
[400159853,1767160261283,-169.32246815,0.00035863,30]
[400159854,1767160261293,-1049.12334207,0.00035867,120]
[400159855,1767160261303,-956.2,0.0003589,39]
[400159856,1767160261312,-150.0,0.00036,120]
[400159857,1767160261322,-1017.21903832,0.00036,7]
[400159858,1767160261332,-898.577244,0.00036,31]
[400159859,1767160261341,-898.577244,0.00036,31]
[400159860,1767160261350,-898.577244,0.00036,31]
[400159861,1767160261359,-898.577244,0.00036,31]
[400159862,1767160261369,-151.0,0.00036,31]
[400159863,1767160261379,-151.0,0.00036,7]
[400159864,1767160261389,-151.0,0.00036,7]
[400159865,1767160261398,-156.190121,0.00036,28]
[400159866,1767160261408,-156.190121,0.00036,28]